Cogmind - Beta 13 @@@ ROGUE MODE // 2024.04.15 @ 02:48:26 Player: ToasterKoishi Result: Destroyed by S-43 Plague with Heavy Machine Gun Performance ------------- Evolutions (7) 3500 Regions Visited (11) 2200 Robots Destroyed (0) 0 Value Destroyed (0) 0 Prototype IDs (0) 0 Alien Tech Used (0) 0 Bonus (4785) 4785 TOTAL SCORE: 10485 Bonus ------- Pacifist 4085 Entered Garrisons 200 Entered DSFs 500 Cogmind --------- Core Integrity 0/1300 Matter 223/300 Energy 98/100 System Corruption 1% Temperature Cool (0) Movement Core (50) Location -3/Research Parts ------- > --- POWER (1) -------- (None) > --- PROPULSION (2) --- (None) > --- UTILITY (16) ----- Improved Signal Interpreter Improved Signal Interpreter Improved Signal Interpreter Improved Signal Interpreter Improved Terrain Scan Processor > --- WEAPON (2) ------- (None) > --- INVENTORY (5) ---- (None) Peak State ------------ > --- POWER ------------ (None) > --- PROPULSION ------- (None) > --- UTILITY ---------- Improved Signal Interpreter Improved Signal Interpreter Improved Signal Interpreter Improved Signal Interpreter Improved Signal Interpreter Advanced Terrain Scanner Improved Terrain Scan Processor > --- WEAPON ----------- Spear > --- INVENTORY -------- (None) [Rating: 27] Favorites ----------- Power None Propulsion None Utility Improved Signal Interpreter Device Advanced Terrain Scanner Processor Improved Signal Interpreter Weapon Spear Piercing Weapon Spear Build | -11 -10 -9 -8 -8 -8 -7 -6 -5 -5 -4 -3 ------- Run | Yrd Mat Mat Mat Gar Mat Fac Fac Fac DSF Fac Res Slots Evolved 14 | . . 2 2 . . 2 2 2 . 2 2 Power . | . . . . . . . . . . . . Propulsion . | . . . . . . . . . . . . Utility 14 | . . 2 2 . . 2 2 2 . 2 2 Weapon . | . . . . . . . . . . . . Parts Attached 8 | . . . . . . 5 3 . . . . Power . | . . . . . . . . . . . . Engine . | . . . . . . . . . . . . Core . | . . . . . . . . . . . . Reactor . | . . . . . . . . . . . . Propulsion . | . . . . . . . . . . . . Treads . | . . . . . . . . . . . . Leg . | . . . . . . . . . . . . Wheel . | . . . . . . . . . . . . Hover . | . . . . . . . . . . . . Flight . | . . . . . . . . . . . . Utility 7 | . . . . . . 5 2 . . . . Device 1 | . . . . . . . 1 . . . . Storage . | . . . . . . . . . . . . Processor 6 | . . . . . . 5 1 . . . . Hackware . | . . . . . . . . . . . . Protection . | . . . . . . . . . . . . Artifact . | . . . . . . . . . . . . Weapon 1 | . . . . . . . 1 . . . . Energy Gun . | . . . . . . . . . . . . Energy Cannon . | . . . . . . . . . . . . Ballistic Gun . | . . . . . . . . . . . . Ballistic Cannon . | . . . . . . . . . . . . Launcher . | . . . . . . . . . . . . Special Weapon . | . . . . . . . . . . . . Impact Weapon . | . . . . . . . . . . . . Slashing Weapon . | . . . . . . . . . . . . Piercing Weapon 1 | . . . . . . . 1 . . . . Special Melee Weapon . | . . . . . . . . . . . . Unidentified Prototypes . | . . . . . . . . . . . . Parts Lost 3 | . . . . . . . 1 . . . 2 Power . | . . . . . . . . . . . . Propulsion . | . . . . . . . . . . . . Utility 2 | . . . . . . . . . . . 2 Weapon 1 | . . . . . . . 1 . . . . Highest Loss Streak 1 | . . . . . . . 1 . . . 1 To Critical Strikes . | . . . . . . . . . . . . Average Slot Usage (%) 26 | . . . . . . 17 43 41 41 36 29 Device 1 | . . . . . . . 2 5 5 5 1 Processor 22 | . . . . . . 17 35 35 35 31 27 Piercing Weapon 1 | . . . . . . . 4 . . . . Naked Turns 265 | . 24 38 6 67 58 72 . . . . . Heaviest Build 3 | . . . . . . . 3 1 1 1 1 Greatest Support 3 | 3 3 3 3 3 3 3 3 3 3 3 3 Greatest Overweight (x) . | . . . . . . . . . . . . Average Overweight (x) . | . . . . . . . . . . . . Largest Inventory Capacity 5 | 5 5 5 5 5 5 5 5 5 5 5 5 Average Capacity 5 | 5 5 5 5 5 5 5 5 5 5 5 5 Most Carried . | . . . . . . . . . . . . Average Carried . | . . . . . . . . . . . . Final Capacity 5 | 5 5 5 5 5 5 5 5 5 5 5 5 Final Carried . | . . . . . . . . . . . . Class Distribution -------------------- 100% | Mutant Dominant Class ---------------- Mutant | -10/Materials Mutant | -9/Materials Mutant | -8/Materials Mutant | -8/Garrison Mutant | -8/Materials Mutant | -7/Factory Mutant | -6/Factory Mutant | -5/Factory Mutant | -5/DSF Mutant | -4/Factory Mutant | -3/Research Resources | -11 -10 -9 -8 -8 -8 -7 -6 -5 -5 -4 -3 ----------- Run | Yrd Mat Mat Mat Gar Mat Fac Fac Fac DSF Fac Res Matter Collected 138 | 126 . . . . . 5 3 . . . 4 Remotely . | . . . . . . . . . . . . Salvage Created . | . . . . . . . . . . . . Parts . | . . . . . . . . . . . . Haulers Intercepted . | . . . . . . . . . . . . Recyclers Shooed . | . . . . . . . . . . . . Parts Field Recycled . | . . . . . . . . . . . . Retrieved Matter . | . . . . . . . . . . . . Parts Self-Destructed . | . . . . . . . . . . . . Prevented . | . . . . . . . . . . . . Kills | -11 -10 -9 -8 -8 -8 -7 -6 -5 -5 -4 -3 ------- Run | Yrd Mat Mat Mat Gar Mat Fac Fac Fac DSF Fac Res Combat Hostiles Destroyed . | . . . . . . . . . . . . Classes Destroyed . | . . . . . . . . . . . . Best Kill Streak . | . . . . . . . . . . . . Combat Bots Only . | . . . . . . . . . . . . Max Kills in Single Turn . | . . . . . . . . . . . . Gunslinging . | . . . . . . . . . . . . Exploded . | . . . . . . . . . . . . Melee . | . . . . . . . . . . . . Uniques/NPCs Destroyed . | . . . . . . . . . . . . Combat | -11 -10 -9 -8 -8 -8 -7 -6 -5 -5 -4 -3 -------- Run | Yrd Mat Mat Mat Gar Mat Fac Fac Fac DSF Fac Res Hostile Shots Fired 272 | . 2 . . 51 17 26 70 . 2 4 100 Missed 122 | . 2 . . 25 5 9 30 . 1 1 49 Damage Taken 2983 | . . . . 299 201 338 685 . 19 64 1377 Core 2833 | . . . . 299 201 338 604 . 19 64 1308 Absorbed by Shields 30 | . . . . . . . 30 . . . . Core Remaining (%) 72 | 100 100 100 . . 9 51 28 . 98 94 . Volleys Fired . | . . . . . . . . . . . . Largest . | . . . . . . . . . . . . Hottest . | . . . . . . . . . . . . Shots Fired . | . . . . . . . . . . . . Gun . | . . . . . . . . . . . . Cannon . | . . . . . . . . . . . . Launcher . | . . . . . . . . . . . . Special . | . . . . . . . . . . . . Kinetic . | . . . . . . . . . . . . Thermal . | . . . . . . . . . . . . Explosive . | . . . . . . . . . . . . Electromagnetic . | . . . . . . . . . . . . Robot Hit Streak . | . . . . . . . . . . . . Robot Miss Streak . | . . . . . . . . . . . . Penetration Max . | . . . . . . . . . . . . Secondary Targets . | . . . . . . . . . . . . Shots Hit Robots 1 | . . . . . . . 1 . . . . Core Hits 1 | . . . . . . . . . . . 1 Critical Kills . | . . . . . . . . . . . . Critical Parts Destroyed . | . . . . . . . . . . . . Critical Strikes . | . . . . . . . . . . . . Melee Attacks 3 | . . . . . . . 3 . . . . Impact . | . . . . . . . . . . . . Slashing . | . . . . . . . . . . . . Piercing 3 | . . . . . . . 3 . . . . Sneak Attacks . | . . . . . . . . . . . . Combat Hostiles . | . . . . . . . . . . . . Follow-up Attacks . | . . . . . . . . . . . . Damage Inflicted 71 | . . . . . 10 . 41 . . . 20 Guns . | . . . . . . . . . . . . Cannons . | . . . . . . . . . . . . Explosions . | . . . . . . . . . . . . Melee 41 | . . . . . . . 41 . . . . Ramming 30 | . . . . . 10 . . . . . 20 Kinetic . | . . . . . . . . . . . . Thermal . | . . . . . . . . . . . . Explosive . | . . . . . . . . . . . . Electromagnetic . | . . . . . . . . . . . . Impact . | . . . . . . . . . . . . Slashing . | . . . . . . . . . . . . Piercing 41 | . . . . . . . 41 . . . . Highest Corruption 2 | . . . . 1 2 . . . . 1 1 Average Corruption 1 | . . . . 1 1 . . . . 1 1 Corruption Purged . | . . . . . . . . . . . . Corruption Blocked . | . . . . . . . . . . . . Effects 1 | . . . . . . . . . . . 1 Heat Flow Errors 1 | . . . . . . . . . . . 1 Overload Shots . | . . . . . . . . . . . . Overflow Damage . | . . . . . . . . . . . . Projectiles . | . . . . . . . . . . . . Explosions . | . . . . . . . . . . . . Melee . | . . . . . . . . . . . . Knockbacks 1 | . . . . . . . . . . . 1 Impact 1 | . . . . . . . . . . . 1 Kinetic . | . . . . . . . . . . . . Secondary . | . . . . . . . . . . . . Self-Inflicted Damage 13 | . . . . . 4 . . . . . 9 Shots . | . . . . . . . . . . . . Rammed 14 | . . . . . 6 . . . . . 8 Targets Rammed 14 | . . . . . 6 . . . . . 8 Kicked . | . . . . . . . . . . . . Crushed . | . . . . . . . . . . . . Highest Temperature 217 | . . . . . . . . . . . 217 Average Temperature 125 | . . . . . . . . . . . 125 Received Heat Transfer 475 | . . . . 27 90 120 193 . . . 45 Siege Activations . | . . . . . . . . . . . . Robots Corrupted . | . . . . . . . . . . . . Combat Hostiles . | . . . . . . . . . . . . Parts Fried . | . . . . . . . . . . . . Impact Corruptions . | . . . . . . . . . . . . Robots Melted . | . . . . . . . . . . . . Combat Hostiles . | . . . . . . . . . . . . Parts Melted . | . . . . . . . . . . . . Heat Transferred . | . . . . . . . . . . . . Parts Sabotaged . | . . . . . . . . . . . . Parts Stolen . | . . . . . . . . . . . . Parts Stripped . | . . . . . . . . . . . . Power Chain Reactions . | . . . . . . . . . . . . Alert | -11 -10 -9 -8 -8 -8 -7 -6 -5 -5 -4 -3 ------- Run | Yrd Mat Mat Mat Gar Mat Fac Fac Fac DSF Fac Res Peak Influence 284 | . 45 32 16 95 96 138 284 138 96 66 164 Initial 133 | . . 18 13 10 46 43 67 133 96 50 34 Average 95 | . 20 19 14 62 64 96 150 133 96 62 63 Maximum Alert Level 1 | . . . . . . . 1 . . . . Low Security (%) 90 | 100 100 100 100 100 100 100 69 100 100 100 100 Level 1 9 | . . . . . . . 30 . . . . Level 2 . | . . . . . . . . . . . . Level 3 . | . . . . . . . . . . . . Level 4 . | . . . . . . . . . . . . Level 5 . | . . . . . . . . . . . . High Security . | . . . . . . . . . . . . Max Security . | . . . . . . . . . . . . Squads Dispatched 14 | . 1 . . . 1 5 4 . . . 3 Investigation 9 | . . . . . 1 4 3 . . . 1 Extermination 1 | . . . . . . . 1 . . . . Reinforcement 4 | . 1 . . . . 1 . . . . 2 Assault . | . . . . . . . . . . . . Garrison . | . . . . . . . . . . . . Intercept . | . . . . . . . . . . . . Searches Triggered . | . . . . . . . . . . . . Construction Impeded . | . . . . . . . . . . . . Haulers Reinforced . | . . . . . . . . . . . . Active Scanning Responses . | . . . . . . . . . . . . Cargo Convoy Interrupts . | . . . . . . . . . . . . Stealth | -11 -10 -9 -8 -8 -8 -7 -6 -5 -5 -4 -3 --------- Run | Yrd Mat Mat Mat Gar Mat Fac Fac Fac DSF Fac Res Distress Signals 4 | . 1 . . . . . 2 . . . 1 Communications Jammed . | . . . . . . . . . . . . Distress Signals . | . . . . . . . . . . . . Times Spotted 83 | . 6 4 . 16 7 6 17 . 1 2 24 Peak Tracking Total 17 | . 4 3 . 16 6 5 8 . 2 2 17 Tactical Retreats 9 | . . . . . . 2 4 . . . 3 Traps | -11 -10 -9 -8 -8 -8 -7 -6 -5 -5 -4 -3 ------- Run | Yrd Mat Mat Mat Gar Mat Fac Fac Fac DSF Fac Res Traps Triggered 4 | . . . . . . . 3 . . . 1 Indirectly . | . . . . . . . . . . . . Trap Hack Attempts . | . . . . . . . . . . . . Triggered . | . . . . . . . . . . . . Disarmed . | . . . . . . . . . . . . Reprogrammed . | . . . . . . . . . . . . Reused . | . . . . . . . . . . . . Traps Extracted . | . . . . . . . . . . . . Installed . | . . . . . . . . . . . . Triggered . | . . . . . . . . . . . . Machines | -11 -10 -9 -8 -8 -8 -7 -6 -5 -5 -4 -3 ---------- Run | Yrd Mat Mat Mat Gar Mat Fac Fac Fac DSF Fac Res Machines Disabled . | . . . . . . . . . . . . Max in Single Turn . | . . . . . . . . . . . . Machines Repaired . | . . . . . . . . . . . . Machines Dismantled . | . . . . . . . . . . . . Machines Sabotaged . | . . . . . . . . . . . . Overloaded Fab Kills . | . . . . . . . . . . . . Hacking | -11 -10 -9 -8 -8 -8 -7 -6 -5 -5 -4 -3 --------- Run | Yrd Mat Mat Mat Gar Mat Fac Fac Fac DSF Fac Res Machines Accessed 19 | . . 1 1 1 2 5 3 1 . 3 2 Terminals 18 | . . 1 . 1 2 5 3 1 . 3 2 Fabricators . | . . . . . . . . . . . . Repair Stations . | . . . . . . . . . . . . Recycling Units . | . . . . . . . . . . . . Scanalyzers . | . . . . . . . . . . . . Garrison Access 1 | . . . 1 . . . . . . . . Total Hacks 39 | . . 3 2 2 3 12 7 2 . 4 4 Successful 14 | . . 2 1 . 1 4 2 1 . 2 1 Failed 25 | . . 1 1 2 2 8 5 1 . 2 3 Catastrophic 10 | . . 1 . . 1 4 3 . . . 1 Database Lockouts . | . . . . . . . . . . . . Manual 15 | . . 3 . . 2 4 5 . . 1 . Terminals 37 | . . 3 . 2 3 12 7 2 . 4 4 Fabricators . | . . . . . . . . . . . . Repair Stations . | . . . . . . . . . . . . Recycling Units . | . . . . . . . . . . . . Scanalyzers . | . . . . . . . . . . . . Garrison Access 2 | . . . 2 . . . . . . . . Terminal Hacks 10 | . . 1 . . 1 4 . 1 . 2 1 Open DSF 2 | . . . . . . . . 1 . 1 . Level Access Points 1 | . . 1 . . . . . . . . . Branch Access Points 2 | . . . . . . 1 . . . 1 . Emergency Access Points 2 | . . . . . . 2 . . . . . Terminal Index 1 | . . . . . . 1 . . . . . Maintenance Status 1 | . . . . . . . . . . . 1 Zone Layout 1 | . . . . . 1 . . . . . . Fabricator Hacks . | . . . . . . . . . . . . Repair Station Hacks . | . . . . . . . . . . . . Recycling Unit Hacks . | . . . . . . . . . . . . Scanalyzer . | . . . . . . . . . . . . Garrison Access Hacks 1 | . . . 1 . . . . . . . . Unlock Access 1 | . . . 1 . . . . . . . . Unauthorized Hacks 3 | . . 1 . . . . 2 . . . . Terminals 3 | . . 1 . . . . 2 . . . . Assimilate 3 | . . 1 . . . . 2 . . . . Fabricators . | . . . . . . . . . . . . Repair Stations . | . . . . . . . . . . . . Recycling Units . | . . . . . . . . . . . . Scanalyzers . | . . . . . . . . . . . . Garrison Access . | . . . . . . . . . . . . Data Cores Recovered . | . . . . . . . . . . . . Used . | . . . . . . . . . . . . Hacking Detections 18 | . . 1 1 1 2 5 3 . . 3 2 Full Trace Events 11 | . . 1 . 1 1 4 3 . . . 1 Feedback Events 1 | . . . . . . . . . . . 1 Corruption 1 | . . . . . . . . . . . 1 Feedback Blocked . | . . . . . . . . . . . . Robot Schematics Acquired . | . . . . . . . . . . . . Robots Built . | . . . . . . . . . . . . Authchips . | . . . . . . . . . . . . Time . | . . . . . . . . . . . . Total Robot Build Rating . | . . . . . . . . . . . . Part Schematics Acquired . | . . . . . . . . . . . . Parts Built . | . . . . . . . . . . . . Authchips . | . . . . . . . . . . . . Time . | . . . . . . . . . . . . Total Part Build Rating . | . . . . . . . . . . . . Parts Repaired . | . . . . . . . . . . . . Time . | . . . . . . . . . . . . Parts Recycled . | . . . . . . . . . . . . Recycled Matter . | . . . . . . . . . . . . Retrieved Matter . | . . . . . . . . . . . . Retrieved Components . | . . . . . . . . . . . . Parts Scanalyzed . | . . . . . . . . . . . . Part Schematics Acquired . | . . . . . . . . . . . . Parts Damaged . | . . . . . . . . . . . . Bothacking | -11 -10 -9 -8 -8 -8 -7 -6 -5 -5 -4 -3 ------------ Run | Yrd Mat Mat Mat Gar Mat Fac Fac Fac DSF Fac Res Used RIF Installer . | . . . . . . . . . . . . Robots Hacked . | . . . . . . . . . . . . Non-combat . | . . . . . . . . . . . . Combat . | . . . . . . . . . . . . Robot Hacks Applied . | . . . . . . . . . . . . Relay Couplers Released . | . . . . . . . . . . . . Fabnet Peak Effective % . | . . . . . . . . . . . . Robots Rewired . | . . . . . . . . . . . . Allies Hacked . | . . . . . . . . . . . . Hacks Repelled . | . . . . . . . . . . . . Allies | -11 -10 -9 -8 -8 -8 -7 -6 -5 -5 -4 -3 -------- Run | Yrd Mat Mat Mat Gar Mat Fac Fac Fac DSF Fac Res Total Allies 2 | . . 1 . . . . 1 . . . . Largest Group 1 | . . 1 1 1 . . 1 . . . . Highest-Rated Group 10 | . . 10 10 10 . . 10 . . . . Highest-Rated Ally 10 | . . 10 10 10 . . 10 . . . . Total Orders . | . . . . . . . . . . . . Ally Attacks . | . . . . . . . . . . . . Total Damage . | . . . . . . . . . . . . Kills . | . . . . . . . . . . . . Allies Corrupted 1 | . . . . 1 . . . . . . . Allies Melted . | . . . . . . . . . . . . Intel | -11 -10 -9 -8 -8 -8 -7 -6 -5 -5 -4 -3 ------- Run | Yrd Mat Mat Mat Gar Mat Fac Fac Fac DSF Fac Res Robot Analysis Total . | . . . . . . . . . . . . Derelict Logs Recovered . | . . . . . . . . . . . . Drone Launches . | . . . . . . . . . . . . Drone Recoveries . | . . . . . . . . . . . . Exploration | -11 -10 -9 -8 -8 -8 -7 -6 -5 -5 -4 -3 ------------- Run | Yrd Mat Mat Mat Gar Mat Fac Fac Fac DSF Fac Res Turns Passed 814 | 9 24 38 6 67 58 143 264 20 15 54 116 Spaces Moved 1484 | 19 47 68 8 134 100 271 446 39 30 108 214 Core 1484 | 19 47 68 8 134 100 271 446 39 30 108 214 Treads . | . . . . . . . . . . . . Legs . | . . . . . . . . . . . . Wheels . | . . . . . . . . . . . . Hover . | . . . . . . . . . . . . Flight . | . . . . . . . . . . . . Fastest Speed 50 | 50 50 50 50 50 50 50 50 50 50 50 50 Average Speed 50 | 50 50 50 50 50 50 50 50 50 50 50 50 Slowest Speed 50 | 50 50 50 50 50 50 50 50 50 50 50 50 Overloaded Moves . | . . . . . . . . . . . . Propulsion Burnouts . | . . . . . . . . . . . . Robots Hopped . | . . . . . . . . . . . . Cave-ins Triggered . | . . . . . . . . . . . . Exploration Rate (%) 14 | 4 16 16 2 31 18 10 21 2 39 4 11 Regions Visited 11 Branch Regions . Pre-discovered Areas . | . . . . . . . . . . . . Known Exits Taken 6 | . . 1 1 . . 1 1 1 . 1 . Unknown Exits Taken 3 | 1 1 . . . 1 . . . . . . Scrap Searched . | . . . . . . . . . . . . Spaces Dug 2 | . . . . . . . 2 . . . . Terrain Destroyed 2 | . . . . . . . 2 . . . . Melee 2 | . . . . . . . 2 . . . . Projectile . | . . . . . . . . . . . . AOE . | . . . . . . . . . . . . Terrain Rammed . | . . . . . . . . . . . . Walls Destroyed . | . . . . . . . . . . . . Machines Disabled . | . . . . . . . . . . . . Actions | -11 -10 -9 -8 -8 -8 -7 -6 -5 -5 -4 -3 --------- Run | Yrd Mat Mat Mat Gar Mat Fac Fac Fac DSF Fac Res Total 1536 | 18 46 71 9 133 107 275 480 38 29 107 223 Wait 12 | . . 4 2 . 2 . 3 . . . 1 Move 1474 | 18 46 67 7 133 100 270 445 38 29 107 214 Hop . | . . . . . . . . . . . . Pick Up . | . . . . . . . . . . . . Fast Attach 8 | . . . . . . 5 3 . . . . Attach . | . . . . . . . . . . . . Detach . | . . . . . . . . . . . . Swap . | . . . . . . . . . . . . Drop . | . . . . . . . . . . . . Fire . | . . . . . . . . . . . . Melee 3 | . . . . . . . 3 . . . . Ram 13 | . . . . . 5 . . . . . 8 Kick . | . . . . . . . . . . . . Crush . | . . . . . . . . . . . . Escape Stasis 26 | . . . . . . . 26 . . . . Rewire . | . . . . . . . . . . . . Trap . | . . . . . . . . . . . . Miscellaneous . | . . . . . . . . . . . . Route ------- -11/Scrapyard -10/Materials -9/Materials (discovered 3 exits: *Mat x3) -8/Materials -8/Garrison -8/Materials -7/Factory (discovered 3 exits: *Fac / Low x2) -6/Factory (discovered 3 exits: *Fac / *Low x2) -5/Factory -5/DSF -4/Factory (discovered 3 exits: *Res / Upp x2) -3/Research History --------- Turn | Location | Event 2 | -11/Scrapyard | Met Revision 17 3 | -11/Scrapyard | Discovered new exit (range 15) 10 | -11/Scrapyard | Entered Materials 26 | -10/Materials | Discovered new exit (range 16) 34 | -10/Materials | Entered another Materials area 34 | -9/Materials | Evolved 2 slots: Utility x2 69 | -9/Materials | Identified exit to Materials 72 | -9/Materials | Entered another Materials area 72 | -8/Materials | Accompanied by 1 ally 72 | -8/Materials | Evolved 2 slots: Utility x2 76 | -8/Materials | Identified exit to Garrison 78 | -8/Materials | Entered Garrison 78 | -8/Garrison | Accompanied by 1 ally 137 | -8/Garrison | Core integrity fell below 50% 141 | -8/Garrison | Discovered new exit (range 10) 145 | -8/Garrison | Entered Materials 189 | -8/Materials | Discovered new exit (range 10) 197 | -8/Materials | Core integrity fell below 20% 203 | -8/Materials | Entered Factory 203 | -7/Factory | Evolved 2 slots: Utility x2 244 | -7/Factory | Identified exit to Lower Caves 304 | -7/Factory | Build established: Mutant 337 | -7/Factory | Discovered new exit (range 16) 346 | -7/Factory | Identified exit to Factory 346 | -7/Factory | Entered another Factory area 346 | -6/Factory | Evolved 2 slots: Utility x2 360 | -6/Factory | Discovered new exit (range 10) 360 | -6/Factory | Discovered new exit (range 6) 364 | -6/Factory | Identified exit to Lower Caves 465 | -6/Factory | Core integrity fell below 50% 607 | -6/Factory | Discovered new exit (range 8) 610 | -6/Factory | Identified exit to Factory 610 | -6/Factory | Entered another Factory area 610 | -5/Factory | Evolved 2 slots: Utility x2 629 | -5/Factory | Identified exit to DSF 630 | -5/Factory | Entered DSF 639 | -5/DSF | Discovered new exit (range 12) 645 | -5/DSF | Identified exit to Factory 645 | -5/DSF | Entered Factory 645 | -4/Factory | Evolved 2 slots: Utility x2 658 | -4/Factory | Identified exit to Upper Caves 690 | -4/Factory | Discovered new exit (range 18) 699 | -4/Factory | Identified exit to Research 699 | -4/Factory | Entered Research 699 | -3/Research | Evolved 2 slots: Utility x2 796 | -3/Research | Core integrity fell below 50% 813 | -3/Research | Core integrity fell below 20% 815 | -3/Research | Destroyed by S-43 Plague with Heavy Machine Gun Last Messages --------------- 19 Recyclers 1 Mechanic Downloaded coordinate data. 00798_ Penetrated by Slug. 00798_ Slug penetrates Wall. 00804_ Imp. Signal Interpreter destroyed. 00805_ ALERT: Suspicious intruders detected, dispatching Cutter reinforcements to area. 00805_ W-44 Eye sends out distress signal. 00806_ Knocked back. 00811_ Slug penetrates Wall. 00811_ Penetrated by Slug. 00811_ Slug penetrates Wall. 00813_ Slug penetrates W-44 Eye. 00813_ W-44 Eye suffers critical hit (Blast). 00813_ W-44 Eye destroyed. 00814_ Acquired 4 matter. 00814_ Knocked back. 00815_ W-44 Eye destroyed. 00815_ Penetrated by Slug. 00815_ Knocked back. Map ----- +----------------------------------------------------+ | ?????????????????????????????????????????????????? | | ?????????????????????????????????????????????????? | | ?????????????????????????????????????????????????? | | ?????????????????????????????????????????????????? | | ?????????????????????????????????????????????????? | | ?????????????????????????????????????????????????? | | ?????????????????????????????????????????????????? | | ?????????????????????????????????????????????????? | | ?????????????????????????????????????????????????? | | ?????????????????????????????????????????????????? | | ?????????????????????????????????????????????????? | | ?????????????????????????????????????????????????? | | ?????????????????????????????????????????????????? | | ?????????????????????????????????? ?????????????? | | ?????????????????????????????????u k#????????????? | | ????????????????????????????????# ##???????????? | | ???????????????????????????##### #???????????? | | ???????????????????##?????? #???????????? | | ???????????????????? ????? p #???????????? | | ??????? ? ????####+#####R c #???????????? | | ??????? #????= u # c pc #???????????? | | ??????# #?????? c #???????????? | | ??????# #??????? #???????????? | | ??????# #???????? ??????????????? | | ??????+ #########?# % #?????????????????? | | ??????# # # @ #?????????????????? | | ???#### #?????????????????? | | ???# #?????????????????? | | ???# % H #?????????????????? | | ???# ## % #?????????????????? | | ???# """ #### R #?????????????????? | | ??## """ ## # ###?????????????????? | | ??# """ hs + # #???????????????????? | | ??# s ##+#### # #???????????????????? | | ??# # ## # #???????????????????? | | ??# + ## #? ???????????????????? | | ??# #"""T"""##### ## #?#???????????????????? | | ??# #########?????? ## #?????????????????????? | | ??# #????????????????## #?????????????????????? | | ??# #?????????????????# #?????????????????????? | | ??# #?????????????????######?????????????????????? | | ??# #????????????????????????????????????????????? | | ??# #????????????????????????????????????????????? | | ??#/########?????????????????????????????????????? | | ??# ! #?????????????????????????????????????? | | ??# #?????????????????????????????????????? | | ??# """ #?????????????????????????????????????? | | ??# """" #?????????????????????????????????????? | | ??# """" #?????????????????????????????????????? | | ??# """ =#?????????????????????????????????????? | +----------------------------------------------------+ Best States ------------- Heat Dissipation 46 Energy Generation 5 Energy Capacity 100 Matter Stores 246 Matter Capacity 300 Sight Range 16 Terrain Scan Range 20 Terrain Scan Density 110 Evasion (%) 50 Item Schematics ----------------- None Robot Schematics ------------------ None Fabricated ------------ Nothing Alien Tech Used ----------------- None Achievements -------------- Party Time Challenges ------------ None Game ------ Seed FluxImpulseMatrix Manual? 0 Play Time 00:20:02 Cumulative 54.1 hours Start 2024.04.15 @ 02:31:18 End 2024.04.15 @ 02:48:26 Sessions 1 Manual Loads 0 Difficulty Rogue Special Mode None Game No. 39 Rogue 39 Adventurer 0 Explorer 0 Win Type - Total 5 Types 4/0/1/0/0/0/0/0/0 Lore% 45 Gallery% 32 Achievement% 36 Wizard Run 0 Options --------- Layout 0 ASCII 0 Keyboard 0 Movement Numpad Keybinds 0 Fullscreen 2 Font 18/SmallcapsGlow Map View 112x50 Zoom Use 0% Tactical HUD 1 Map Filters NONE Filters NONE Steam 1 RUN: 7bb4bd97-7cc3-4329-8e66-43979435f220